Workbook

Sheet Nobraukuma žurnāls
B1: NOBRAUKUMA ŽURNĀLS
C11: KOMPENSĒJAMIE | E11: KOPĒJĀ
C12: KILOMETRI | E12: KOMPENSĀCIJA
C17: 2012-05-01 | E17: 2012-05-10
C19: PERIODS | E19: PERIODS
C20: SĀKUMS | E20: BEIGAS
C26: 54 | E26: 9,800
C28: KOMPENSĀCIJA | E28: IEPRIEKŠĒJAIS DEGVIELAS
C29: l/km | E29: ODOMETRA RĀDĪJUMS

Sheet Žurnāla dati
B1: NOBRAUKUMA ŽURNĀLS
B5: DATUMS | C5: DARBĪBA | D5: ODOM. 1 | E5: ATRAŠANĀS VIETA | F5: ODOM. 2 | G5: MĒRĶIS | H5: KOMPENSĒT | I5: LITRI | J5: IZMAKSAS | K5: KILOMETRI | L5: l/km | M5: LITRI/KM | N5: PIEZĪMES
B6: 2012-05-01 | C6: Brauciens | D6: 10,123 | E6: Rožu iela | F6: 10,130 | I6: 15.56 | J6: 64.11 € | K6: =Kilometri -> 7 | L6: =IF(OR(LEN(Dati[[#This Row],[ODOM. 2]]),Dati[[#This Row],[ODOM. 1]]=""),"",IFERROR(Dati[[#This Row],[KILOMETRI]]/Dati[[#This Row],[LITRI]],"")) ->  | M6: =IF(Dati[[#This Row],[l/km]]="","",100*Dati[[#This Row],[IZMAKSAS]]/Dati[[#This Row],[KILOMETRI]]) -> 
B7: 2012-05-01 | C7: Brauciens | D7: 10,130 | E7: Birojs | F7: 10,200 | G7: Augļu iela | H7: Jā | K7: =Kilometri -> 70 | L7: =IF(OR(LEN(Dati[[#This Row],[ODOM. 2]]),Dati[[#This Row],[ODOM. 1]]=""),"",IFERROR(Dati[[#This Row],[KILOMETRI]]/Dati[[#This Row],[LITRI]],"")) ->  | M7: =IF(Dati[[#This Row],[l/km]]="","",100*Dati[[#This Row],[IZMAKSAS]]/Dati[[#This Row],[KILOMETRI]]) -> 
B8: 2012-05-01 | C8: Brauciens | D8: 10,200 | E8: Tirgus | F8: 10,285 | G8: Birojs | H8: Jā | K8: =Kilometri -> 85 | L8: =IF(OR(LEN(Dati[[#This Row],[ODOM. 2]]),Dati[[#This Row],[ODOM. 1]]=""),"",IFERROR(Dati[[#This Row],[KILOMETRI]]/Dati[[#This Row],[LITRI]],"")) ->  | M8: =IF(Dati[[#This Row],[l/km]]="","",100*Dati[[#This Row],[IZMAKSAS]]/Dati[[#This Row],[KILOMETRI]]) -> 
B9: 2012-05-02 | C9: Brauciens | D9: 10,285 | E9: Birojs | F9: 10,450 | G9: Viesu nams | H9: Jā | K9: =Kilometri -> 165 | L9: =IF(OR(LEN(Dati[[#This Row],[ODOM. 2]]),Dati[[#This Row],[ODOM. 1]]=""),"",IFERROR(Dati[[#This Row],[KILOMETRI]]/Dati[[#This Row],[LITRI]],"")) ->  | M9: =IF(Dati[[#This Row],[l/km]]="","",100*Dati[[#This Row],[IZMAKSAS]]/Dati[[#This Row],[KILOMETRI]]) -> 
B10: 2012-05-02 | C10: Degviela | D10: 10,450 | E10: Benzīntanks | I10: 11.20 | J10: 55.42 € | K10: =Kilometri -> 650 | L10: =IF(OR(LEN(Dati[[#This Row],[ODOM. 2]]),Dati[[#This Row],[ODOM. 1]]=""),"",IFERROR(Dati[[#This Row],[KILOMETRI]]/Dati[[#This Row],[LITRI]],"")) -> 58.0 | M10: =IF(Dati[[#This Row],[l/km]]="","",100*Dati[[#This Row],[IZMAKSAS]]/Dati[[#This Row],[KILOMETRI]]) -> 8.5
B11: 2012-05-02 | C11: Brauciens | D11: 10,500 | E11: Viesu nams | F11: 10,518 | G11: Birojs | H11: Jā | K11: =Kilometri -> 18 | L11: =IF(OR(LEN(Dati[[#This Row],[ODOM. 2]]),Dati[[#This Row],[ODOM. 1]]=""),"",IFERROR(Dati[[#This Row],[KILOMETRI]]/Dati[[#This Row],[LITRI]],"")) ->  | M11: =IF(Dati[[#This Row],[l/km]]="","",100*Dati[[#This Row],[IZMAKSAS]]/Dati[[#This Row],[KILOMETRI]]) -> 
B12: 2012-05-03 | C12: Brauciens | D12: 10,518 | E12: Birojs | F12: 10,745 | G12: Birojs | H12: Jā | K12: =Kilometri -> 227 | L12: =IF(OR(LEN(Dati[[#This Row],[ODOM. 2]]),Dati[[#This Row],[ODOM. 1]]=""),"",IFERROR(Dati[[#This Row],[KILOMETRI]]/Dati[[#This Row],[LITRI]],"")) ->  | M12: =IF(Dati[[#This Row],[l/km]]="","",100*Dati[[#This Row],[IZMAKSAS]]/Dati[[#This Row],[KILOMETRI]]) -> 
B13: 2012-05-04 | C13: Degviela | D13: 10,745 | E13: Rožu iela | I13: 16.60 | J13: 69.24 € | K13: =Kilometri -> 295 | L13: =IF(OR(LEN(Dati[[#This Row],[ODOM. 2]]),Dati[[#This Row],[ODOM. 1]]=""),"",IFERROR(Dati[[#This Row],[KILOMETRI]]/Dati[[#This Row],[LITRI]],"")) -> 17.8 | M13: =IF(Dati[[#This Row],[l/km]]="","",100*Dati[[#This Row],[IZMAKSAS]]/Dati[[#This Row],[KILOMETRI]]) -> 23.5
B14: 2012-05-04 | C14: Brauciens | D14: 10,745 | E14: Birojs | F14: 10,800 | G14: Sigulda | H14: Jā | K14: =Kilometri -> 55 | L14: =IF(OR(LEN(Dati[[#This Row],[ODOM. 2]]),Dati[[#This Row],[ODOM. 1]]=""),"",IFERROR(Dati[[#This Row],[KILOMETRI]]/Dati[[#This Row],[LITRI]],"")) ->  | M14: =IF(Dati[[#This Row],[l/km]]="","",100*Dati[[#This Row],[IZMAKSAS]]/Dati[[#This Row],[KILOMETRI]]) -> 
B15: 2012-05-04 | C15: Brauciens | D15: 10,800 | E15: Sigulda | F15: 10,875 | G15: Birojs | H15: Jā | K15: =Kilometri -> 75 | L15: =IF(OR(LEN(Dati[[#This Row],[ODOM. 2]]),Dati[[#This Row],[ODOM. 1]]=""),"",IFERROR(Dati[[#This Row],[KILOMETRI]]/Dati[[#This Row],[LITRI]],"")) ->  | M15: =IF(Dati[[#This Row],[l/km]]="","",100*Dati[[#This Row],[IZMAKSAS]]/Dati[[#This Row],[KILOMETRI]]) -> 
B16: 2012-05-07 | C16: Brauciens | D16: 10,875 | E16: Birojs | F16: 10,921 | G16: Augļu iela | H16: Jā | K16: =Kilometri -> 46 | L16: =IF(OR(LEN(Dati[[#This Row],[ODOM. 2]]),Dati[[#This Row],[ODOM. 1]]=""),"",IFERROR(Dati[[#This Row],[KILOMETRI]]/Dati[[#This Row],[LITRI]],"")) ->  | M16: =IF(Dati[[#This Row],[l/km]]="","",100*Dati[[#This Row],[IZMAKSAS]]/Dati[[#This Row],[KILOMETRI]]) -> 
B17: 2012-05-07 | C17: Brauciens | D17: 10,921 | E17: Tirgus | F17: 10,969 | G17: Birojs | H17: Jā | K17: =Kilometri -> 48 | L17: =IF(OR(LEN(Dati[[#This Row],[ODOM. 2]]),Dati[[#This Row],[ODOM. 1]]=""),"",IFERROR(Dati[[#This Row],[KILOMETRI]]/Dati[[#This Row],[LITRI]],"")) ->  | M17: =IF(Dati[[#This Row],[l/km]]="","",100*Dati[[#This Row],[IZMAKSAS]]/Dati[[#This Row],[KILOMETRI]]) -> 
B18: 2012-05-09 | C18: Brauciens | D18: 10,969 | E18: Birojs | F18: 11,000 | G18: Jūrmala | H18: Jā | K18: =Kilometri -> 31 | L18: =IF(OR(LEN(Dati[[#This Row],[ODOM. 2]]),Dati[[#This Row],[ODOM. 1]]=""),"",IFERROR(Dati[[#This Row],[KILOMETRI]]/Dati[[#This Row],[LITRI]],"")) ->  | M18: =IF(Dati[[#This Row],[l/km]]="","",100*Dati[[#This Row],[IZMAKSAS]]/Dati[[#This Row],[KILOMETRI]]) -> 
B19: 2012-05-09 | C19: Brauciens | D19: 11,000 | E19: Jūrmala | F19: 11,100 | G19: Mājas | H19: Nē | K19: =Kilometri -> 100 | L19: =IF(OR(LEN(Dati[[#This Row],[ODOM. 2]]),Dati[[#This Row],[ODOM. 1]]=""),"",IFERROR(Dati[[#This Row],[KILOMETRI]]/Dati[[#This Row],[LITRI]],"")) ->  | M19: =IF(Dati[[#This Row],[l/km]]="","",100*Dati[[#This Row],[IZMAKSAS]]/Dati[[#This Row],[KILOMETRI]]) -> 

Sheet Aprēķini (hidden)
A1: *** Šī lapa paliek paslēpta ***
I6: =OFFSET(I9,,otrāAss="degvielas izmaksas") -> l/km
M7: 2
H8: Brauciens | I8: Degviela | J8: Degviela | L8: Otrā ass: | M8: =REPT("l/km",M7=1)&REPT("Degvielas Izmaksas",M7=2) -> Degvielas Izmaksas
H9: Nobrauktie kilometri | I9: l/km | J9: l/km
C10: Kompensējamie kilometri: | D10: =SUMIFS(Dati[KILOMETRI],Dati[KOMPENSĒT],"Jā",Dati[DATUMS],">="&periodsSākums,Dati[DATUMS],"<="&periodsBeigas) -> 820 | F10: 1 | G10: =periodsSākums -> 2012-05-01 | H10: =SUMIFS(Dati[KILOMETRI],Dati[DATUMS],G10,Dati[DARBĪBA],$H$8) -> 162 | I10: =IFERROR(AVERAGEIFS(Dati[l/km],Dati[DATUMS],G10,Dati[DARBĪBA],$I$8),NA()) ->  | J10: =IFERROR(AVERAGEIFS(Dati[LITRI/KM],Dati[DATUMS],G10,Dati[DARBĪBA],$J$8),NA()) -> 
C11: Kopējā kompensācija: | D11: =D10*KompensācijaPaKilometriem/100 -> 442.80 € | F11: 2 | G11: =G10+1 -> 2012-05-02 | H11: =SUMIFS(Dati[KILOMETRI],Dati[DATUMS],G11,Dati[DARBĪBA],$H$8) -> 183 | I11: =IFERROR(AVERAGEIFS(Dati[l/km],Dati[DATUMS],G11,Dati[DARBĪBA],$I$8),NA()) -> 58.0 | J11: =IFERROR(AVERAGEIFS(Dati[LITRI/KM],Dati[DATUMS],G11,Dati[DARBĪBA],$J$8),NA()) -> 8.5
F12: 3 | G12: 2012-05-03 | H12: =SUMIFS(Dati[KILOMETRI],Dati[DATUMS],G12,Dati[DARBĪBA],$H$8) -> 227 | I12: =IFERROR(AVERAGEIFS(Dati[l/km],Dati[DATUMS],G12,Dati[DARBĪBA],$I$8),NA()) ->  | J12: =IFERROR(AVERAGEIFS(Dati[LITRI/KM],Dati[DATUMS],G12,Dati[DARBĪBA],$J$8),NA()) -> 
F13: 4 | G13: 2012-05-04 | H13: =SUMIFS(Dati[KILOMETRI],Dati[DATUMS],G13,Dati[DARBĪBA],$H$8) -> 130 | I13: =IFERROR(AVERAGEIFS(Dati[l/km],Dati[DATUMS],G13,Dati[DARBĪBA],$I$8),NA()) -> 17.8 | J13: =IFERROR(AVERAGEIFS(Dati[LITRI/KM],Dati[DATUMS],G13,Dati[DARBĪBA],$J$8),NA()) -> 23.5
F14: 5 | G14: 2012-05-05 | H14: =SUMIFS(Dati[KILOMETRI],Dati[DATUMS],G14,Dati[DARBĪBA],$H$8) -> 0 | I14: =IFERROR(AVERAGEIFS(Dati[l/km],Dati[DATUMS],G14,Dati[DARBĪBA],$I$8),NA()) ->  | J14: =IFERROR(AVERAGEIFS(Dati[LITRI/KM],Dati[DATUMS],G14,Dati[DARBĪBA],$J$8),NA()) -> 
F15: 6 | G15: 2012-05-06 | H15: =SUMIFS(Dati[KILOMETRI],Dati[DATUMS],G15,Dati[DARBĪBA],$H$8) -> 0 | I15: =IFERROR(AVERAGEIFS(Dati[l/km],Dati[DATUMS],G15,Dati[DARBĪBA],$I$8),NA()) ->  | J15: =IFERROR(AVERAGEIFS(Dati[LITRI/KM],Dati[DATUMS],G15,Dati[DARBĪBA],$J$8),NA()) -> 
F16: 7 | G16: 2012-05-07 | H16: =SUMIFS(Dati[KILOMETRI],Dati[DATUMS],G16,Dati[DARBĪBA],$H$8) -> 94 | I16: =IFERROR(AVERAGEIFS(Dati[l/km],Dati[DATUMS],G16,Dati[DARBĪBA],$I$8),NA()) ->  | J16: =IFERROR(AVERAGEIFS(Dati[LITRI/KM],Dati[DATUMS],G16,Dati[DARBĪBA],$J$8),NA()) -> 
F17: 8 | G17: 2012-05-08 | H17: =SUMIFS(Dati[KILOMETRI],Dati[DATUMS],G17,Dati[DARBĪBA],$H$8) -> 0 | I17: =IFERROR(AVERAGEIFS(Dati[l/km],Dati[DATUMS],G17,Dati[DARBĪBA],$I$8),NA()) ->  | J17: =IFERROR(AVERAGEIFS(Dati[LITRI/KM],Dati[DATUMS],G17,Dati[DARBĪBA],$J$8),NA()) -> 
F18: 9 | G18: 2012-05-09 | H18: =SUMIFS(Dati[KILOMETRI],Dati[DATUMS],G18,Dati[DARBĪBA],$H$8) -> 131 | I18: =IFERROR(AVERAGEIFS(Dati[l/km],Dati[DATUMS],G18,Dati[DARBĪBA],$I$8),NA()) ->  | J18: =IFERROR(AVERAGEIFS(Dati[LITRI/KM],Dati[DATUMS],G18,Dati[DARBĪBA],$J$8),NA()) -> 
F19: 10 | G19: 2012-05-10 | H19: =SUMIFS(Dati[KILOMETRI],Dati[DATUMS],G19,Dati[DARBĪBA],$H$8) -> 0 | I19: =IFERROR(AVERAGEIFS(Dati[l/km],Dati[DATUMS],G19,Dati[DARBĪBA],$I$8),NA()) ->  | J19: =IFERROR(AVERAGEIFS(Dati[LITRI/KM],Dati[DATUMS],G19,Dati[DARBĪBA],$J$8),NA()) -> 
F20: 11 | G20: 2012-05-11 | H20: =SUMIFS(Dati[KILOMETRI],Dati[DATUMS],G20,Dati[DARBĪBA],$H$8) -> 0 | I20: =IFERROR(AVERAGEIFS(Dati[l/km],Dati[DATUMS],G20,Dati[DARBĪBA],$I$8),NA()) ->  | J20: =IFERROR(AVERAGEIFS(Dati[LITRI/KM],Dati[DATUMS],G20,Dati[DARBĪBA],$J$8),NA()) -> 
F21: 12 | G21: 2012-05-12 | H21: =SUMIFS(Dati[KILOMETRI],Dati[DATUMS],G21,Dati[DARBĪBA],$H$8) -> 0 | I21: =IFERROR(AVERAGEIFS(Dati[l/km],Dati[DATUMS],G21,Dati[DARBĪBA],$I$8),NA()) ->  | J21: =IFERROR(AVERAGEIFS(Dati[LITRI/KM],Dati[DATUMS],G21,Dati[DARBĪBA],$J$8),NA()) -> 
F22: 13 | G22: 2012-05-13 | H22: =SUMIFS(Dati[KILOMETRI],Dati[DATUMS],G22,Dati[DARBĪBA],$H$8) -> 0 | I22: =IFERROR(AVERAGEIFS(Dati[l/km],Dati[DATUMS],G22,Dati[DARBĪBA],$I$8),NA()) ->  | J22: =IFERROR(AVERAGEIFS(Dati[LITRI/KM],Dati[DATUMS],G22,Dati[DARBĪBA],$J$8),NA()) -> 
F23: 14 | G23: 2012-05-14 | H23: =SUMIFS(Dati[KILOMETRI],Dati[DATUMS],G23,Dati[DARBĪBA],$H$8) -> 0 | I23: =IFERROR(AVERAGEIFS(Dati[l/km],Dati[DATUMS],G23,Dati[DARBĪBA],$I$8),NA()) ->  | J23: =IFERROR(AVERAGEIFS(Dati[LITRI/KM],Dati[DATUMS],G23,Dati[DARBĪBA],$J$8),NA()) -> 
F24: 15 | G24: 2012-05-15 | H24: =SUMIFS(Dati[KILOMETRI],Dati[DATUMS],G24,Dati[DARBĪBA],$H$8) -> 0 | I24: =IFERROR(AVERAGEIFS(Dati[l/km],Dati[DATUMS],G24,Dati[DARBĪBA],$I$8),NA()) ->  | J24: =IFERROR(AVERAGEIFS(Dati[LITRI/KM],Dati[DATUMS],G24,Dati[DARBĪBA],$J$8),NA()) -> 
F25: 16 | G25: 2012-05-16 | H25: =SUMIFS(Dati[KILOMETRI],Dati[DATUMS],G25,Dati[DARBĪBA],$H$8) -> 0 | I25: =IFERROR(AVERAGEIFS(Dati[l/km],Dati[DATUMS],G25,Dati[DARBĪBA],$I$8),NA()) ->  | J25: =IFERROR(AVERAGEIFS(Dati[LITRI/KM],Dati[DATUMS],G25,Dati[DARBĪBA],$J$8),NA()) -> 
F26: 17 | G26: 2012-05-17 | H26: =SUMIFS(Dati[KILOMETRI],Dati[DATUMS],G26,Dati[DARBĪBA],$H$8) -> 0 | I26: =IFERROR(AVERAGEIFS(Dati[l/km],Dati[DATUMS],G26,Dati[DARBĪBA],$I$8),NA()) ->  | J26: =IFERROR(AVERAGEIFS(Dati[LITRI/KM],Dati[DATUMS],G26,Dati[DARBĪBA],$J$8),NA()) -> 
F27: 18 | G27: 2012-05-18 | H27: =SUMIFS(Dati[KILOMETRI],Dati[DATUMS],G27,Dati[DARBĪBA],$H$8) -> 0 | I27: =IFERROR(AVERAGEIFS(Dati[l/km],Dati[DATUMS],G27,Dati[DARBĪBA],$I$8),NA()) ->  | J27: =IFERROR(AVERAGEIFS(Dati[LITRI/KM],Dati[DATUMS],G27,Dati[DARBĪBA],$J$8),NA()) -> 
F28: 19 | G28: 2012-05-19 | H28: =SUMIFS(Dati[KILOMETRI],Dati[DATUMS],G28,Dati[DARBĪBA],$H$8) -> 0 | I28: =IFERROR(AVERAGEIFS(Dati[l/km],Dati[DATUMS],G28,Dati[DARBĪBA],$I$8),NA()) ->  | J28: =IFERROR(AVERAGEIFS(Dati[LITRI/KM],Dati[DATUMS],G28,Dati[DARBĪBA],$J$8),NA()) -> 
F29: 20 | G29: 2012-05-20 | H29: =SUMIFS(Dati[KILOMETRI],Dati[DATUMS],G29,Dati[DARBĪBA],$H$8) -> 0 | I29: =IFERROR(AVERAGEIFS(Dati[l/km],Dati[DATUMS],G29,Dati[DARBĪBA],$I$8),NA()) ->  | J29: =IFERROR(AVERAGEIFS(Dati[LITRI/KM],Dati[DATUMS],G29,Dati[DARBĪBA],$J$8),NA()) -> 
F30: 21 | G30: 2012-05-21 | H30: =SUMIFS(Dati[KILOMETRI],Dati[DATUMS],G30,Dati[DARBĪBA],$H$8) -> 0 | I30: =IFERROR(AVERAGEIFS(Dati[l/km],Dati[DATUMS],G30,Dati[DARBĪBA],$I$8),NA()) ->  | J30: =IFERROR(AVERAGEIFS(Dati[LITRI/KM],Dati[DATUMS],G30,Dati[DARBĪBA],$J$8),NA()) -> 
F31: 22 | G31: 2012-05-22 | H31: =SUMIFS(Dati[KILOMETRI],Dati[DATUMS],G31,Dati[DARBĪBA],$H$8) -> 0 | I31: =IFERROR(AVERAGEIFS(Dati[l/km],Dati[DATUMS],G31,Dati[DARBĪBA],$I$8),NA()) ->  | J31: =IFERROR(AVERAGEIFS(Dati[LITRI/KM],Dati[DATUMS],G31,Dati[DARBĪBA],$J$8),NA()) -> 
F32: 23 | G32: 2012-05-23 | H32: =SUMIFS(Dati[KILOMETRI],Dati[DATUMS],G32,Dati[DARBĪBA],$H$8) -> 0 | I32: =IFERROR(AVERAGEIFS(Dati[l/km],Dati[DATUMS],G32,Dati[DARBĪBA],$I$8),NA()) ->  | J32: =IFERROR(AVERAGEIFS(Dati[LITRI/KM],Dati[DATUMS],G32,Dati[DARBĪBA],$J$8),NA()) -> 
F33: 24 | G33: 2012-05-24 | H33: =SUMIFS(Dati[KILOMETRI],Dati[DATUMS],G33,Dati[DARBĪBA],$H$8) -> 0 | I33: =IFERROR(AVERAGEIFS(Dati[l/km],Dati[DATUMS],G33,Dati[DARBĪBA],$I$8),NA()) ->  | J33: =IFERROR(AVERAGEIFS(Dati[LITRI/KM],Dati[DATUMS],G33,Dati[DARBĪBA],$J$8),NA()) -> 
F34: 25 | G34: 2012-05-25 | H34: =SUMIFS(Dati[KILOMETRI],Dati[DATUMS],G34,Dati[DARBĪBA],$H$8) -> 0 | I34: =IFERROR(AVERAGEIFS(Dati[l/km],Dati[DATUMS],G34,Dati[DARBĪBA],$I$8),NA()) ->  | J34: =IFERROR(AVERAGEIFS(Dati[LITRI/KM],Dati[DATUMS],G34,Dati[DARBĪBA],$J$8),NA()) -> 
F35: 26 | G35: 2012-05-26 | H35: =SUMIFS(Dati[KILOMETRI],Dati[DATUMS],G35,Dati[DARBĪBA],$H$8) -> 0 | I35: =IFERROR(AVERAGEIFS(Dati[l/km],Dati[DATUMS],G35,Dati[DARBĪBA],$I$8),NA()) ->  | J35: =IFERROR(AVERAGEIFS(Dati[LITRI/KM],Dati[DATUMS],G35,Dati[DARBĪBA],$J$8),NA()) -> 
F36: 27 | G36: 2012-05-27 | H36: =SUMIFS(Dati[KILOMETRI],Dati[DATUMS],G36,Dati[DARBĪBA],$H$8) -> 0 | I36: =IFERROR(AVERAGEIFS(Dati[l/km],Dati[DATUMS],G36,Dati[DARBĪBA],$I$8),NA()) ->  | J36: =IFERROR(AVERAGEIFS(Dati[LITRI/KM],Dati[DATUMS],G36,Dati[DARBĪBA],$J$8),NA()) -> 
F37: 28 | G37: 2012-05-28 | H37: =SUMIFS(Dati[KILOMETRI],Dati[DATUMS],G37,Dati[DARBĪBA],$H$8) -> 0 | I37: =IFERROR(AVERAGEIFS(Dati[l/km],Dati[DATUMS],G37,Dati[DARBĪBA],$I$8),NA()) ->  | J37: =IFERROR(AVERAGEIFS(Dati[LITRI/KM],Dati[DATUMS],G37,Dati[DARBĪBA],$J$8),NA()) -> 
F38: 29 | G38: 2012-05-29 | H38: =SUMIFS(Dati[KILOMETRI],Dati[DATUMS],G38,Dati[DARBĪBA],$H$8) -> 0 | I38: =IFERROR(AVERAGEIFS(Dati[l/km],Dati[DATUMS],G38,Dati[DARBĪBA],$I$8),NA()) ->  | J38: =IFERROR(AVERAGEIFS(Dati[LITRI/KM],Dati[DATUMS],G38,Dati[DARBĪBA],$J$8),NA()) -> 
F39: 30 | G39: 2012-05-30 | H39: =SUMIFS(Dati[KILOMETRI],Dati[DATUMS],G39,Dati[DARBĪBA],$H$8) -> 0 | I39: =IFERROR(AVERAGEIFS(Dati[l/km],Dati[DATUMS],G39,Dati[DARBĪBA],$I$8),NA()) ->  | J39: =IFERROR(AVERAGEIFS(Dati[LITRI/KM],Dati[DATUMS],G39,Dati[DARBĪBA],$J$8),NA()) -> 
F40: 31 | G40: 2012-05-31 | H40: =SUMIFS(Dati[KILOMETRI],Dati[DATUMS],G40,Dati[DARBĪBA],$H$8) -> 0 | I40: =IFERROR(AVERAGEIFS(Dati[l/km],Dati[DATUMS],G40,Dati[DARBĪBA],$I$8),NA()) ->  | J40: =IFERROR(AVERAGEIFS(Dati[LITRI/KM],Dati[DATUMS],G40,Dati[DARBĪBA],$J$8),NA()) -> 
F41: 32 | G41: 2012-06-01 | H41: =SUMIFS(Dati[KILOMETRI],Dati[DATUMS],G41,Dati[DARBĪBA],$H$8) -> 0 | I41: =IFERROR(AVERAGEIFS(Dati[l/km],Dati[DATUMS],G41,Dati[DARBĪBA],$I$8),NA()) ->  | J41: =IFERROR(AVERAGEIFS(Dati[LITRI/KM],Dati[DATUMS],G41,Dati[DARBĪBA],$J$8),NA()) -> 
F42: 33 | G42: 2012-06-02 | H42: =SUMIFS(Dati[KILOMETRI],Dati[DATUMS],G42,Dati[DARBĪBA],$H$8) -> 0 | I42: =IFERROR(AVERAGEIFS(Dati[l/km],Dati[DATUMS],G42,Dati[DARBĪBA],$I$8),NA()) ->  | J42: =IFERROR(AVERAGEIFS(Dati[LITRI/KM],Dati[DATUMS],G42,Dati[DARBĪBA],$J$8),NA()) -> 
F43: 34 | G43: =G42+1 -> 2012-06-03 | H43: =SUMIFS(Dati[KILOMETRI],Dati[DATUMS],G43,Dati[DARBĪBA],$H$8) -> 0 | I43: =IFERROR(AVERAGEIFS(Dati[l/km],Dati[DATUMS],G43,Dati[DARBĪBA],$I$8),NA()) ->  | J43: =IFERROR(AVERAGEIFS(Dati[LITRI/KM],Dati[DATUMS],G43,Dati[DARBĪBA],$J$8),NA()) -> 
F44: 35 | G44: 2012-06-04 | H44: =SUMIFS(Dati[KILOMETRI],Dati[DATUMS],G44,Dati[DARBĪBA],$H$8) -> 0 | I44: =IFERROR(AVERAGEIFS(Dati[l/km],Dati[DATUMS],G44,Dati[DARBĪBA],$I$8),NA()) ->  | J44: =IFERROR(AVERAGEIFS(Dati[LITRI/KM],Dati[DATUMS],G44,Dati[DARBĪBA],$J$8),NA()) -> 
F45: 36 | G45: 2012-06-05 | H45: =SUMIFS(Dati[KILOMETRI],Dati[DATUMS],G45,Dati[DARBĪBA],$H$8) -> 0 | I45: =IFERROR(AVERAGEIFS(Dati[l/km],Dati[DATUMS],G45,Dati[DARBĪBA],$I$8),NA()) ->  | J45: =IFERROR(AVERAGEIFS(Dati[LITRI/KM],Dati[DATUMS],G45,Dati[DARBĪBA],$J$8),NA()) -> 
F46: 37 | G46: 2012-06-06 | H46: =SUMIFS(Dati[KILOMETRI],Dati[DATUMS],G46,Dati[DARBĪBA],$H$8) -> 0 | I46: =IFERROR(AVERAGEIFS(Dati[l/km],Dati[DATUMS],G46,Dati[DARBĪBA],$I$8),NA()) ->  | J46: =IFERROR(AVERAGEIFS(Dati[LITRI/KM],Dati[DATUMS],G46,Dati[DARBĪBA],$J$8),NA()) -> 
F47: 38 | G47: 2012-06-07 | H47: =SUMIFS(Dati[KILOMETRI],Dati[DATUMS],G47,Dati[DARBĪBA],$H$8) -> 0 | I47: =IFERROR(AVERAGEIFS(Dati[l/km],Dati[DATUMS],G47,Dati[DARBĪBA],$I$8),NA()) ->  | J47: =IFERROR(AVERAGEIFS(Dati[LITRI/KM],Dati[DATUMS],G47,Dati[DARBĪBA],$J$8),NA()) -> 
F48: 39 | G48: 2012-06-08 | H48: =SUMIFS(Dati[KILOMETRI],Dati[DATUMS],G48,Dati[DARBĪBA],$H$8) -> 0 | I48: =IFERROR(AVERAGEIFS(Dati[l/km],Dati[DATUMS],G48,Dati[DARBĪBA],$I$8),NA()) ->  | J48: =IFERROR(AVERAGEIFS(Dati[LITRI/KM],Dati[DATUMS],G48,Dati[DARBĪBA],$J$8),NA()) -> 
F49: 40 | G49: 2012-06-09 | H49: =SUMIFS(Dati[KILOMETRI],Dati[DATUMS],G49,Dati[DARBĪBA],$H$8) -> 0 | I49: =IFERROR(AVERAGEIFS(Dati[l/km],Dati[DATUMS],G49,Dati[DARBĪBA],$I$8),NA()) ->  | J49: =IFERROR(AVERAGEIFS(Dati[LITRI/KM],Dati[DATUMS],G49,Dati[DARBĪBA],$J$8),NA()) -> 
F50: 41 | G50: 2012-06-10 | H50: =SUMIFS(Dati[KILOMETRI],Dati[DATUMS],G50,Dati[DARBĪBA],$H$8) -> 0 | I50: =IFERROR(AVERAGEIFS(Dati[l/km],Dati[DATUMS],G50,Dati[DARBĪBA],$I$8),NA()) ->  | J50: =IFERROR(AVERAGEIFS(Dati[LITRI/KM],Dati[DATUMS],G50,Dati[DARBĪBA],$J$8),NA()) -> 
F51: 42 | G51: 2012-06-11 | H51: =SUMIFS(Dati[KILOMETRI],Dati[DATUMS],G51,Dati[DARBĪBA],$H$8) -> 0 | I51: =IFERROR(AVERAGEIFS(Dati[l/km],Dati[DATUMS],G51,Dati[DARBĪBA],$I$8),NA()) ->  | J51: =IFERROR(AVERAGEIFS(Dati[LITRI/KM],Dati[DATUMS],G51,Dati[DARBĪBA],$J$8),NA()) -> 
F52: 43 | G52: 2012-06-12 | H52: =SUMIFS(Dati[KILOMETRI],Dati[DATUMS],G52,Dati[DARBĪBA],$H$8) -> 0 | I52: =IFERROR(AVERAGEIFS(Dati[l/km],Dati[DATUMS],G52,Dati[DARBĪBA],$I$8),NA()) ->  | J52: =IFERROR(AVERAGEIFS(Dati[LITRI/KM],Dati[DATUMS],G52,Dati[DARBĪBA],$J$8),NA()) -> 
F53: 44 | G53: 2012-06-13 | H53: =SUMIFS(Dati[KILOMETRI],Dati[DATUMS],G53,Dati[DARBĪBA],$H$8) -> 0 | I53: =IFERROR(AVERAGEIFS(Dati[l/km],Dati[DATUMS],G53,Dati[DARBĪBA],$I$8),NA()) ->  | J53: =IFERROR(AVERAGEIFS(Dati[LITRI/KM],Dati[DATUMS],G53,Dati[DARBĪBA],$J$8),NA()) -> 
F54: 45 | G54: 2012-06-14 | H54: =SUMIFS(Dati[KILOMETRI],Dati[DATUMS],G54,Dati[DARBĪBA],$H$8) -> 0 | I54: =IFERROR(AVERAGEIFS(Dati[l/km],Dati[DATUMS],G54,Dati[DARBĪBA],$I$8),NA()) ->  | J54: =IFERROR(AVERAGEIFS(Dati[LITRI/KM],Dati[DATUMS],G54,Dati[DARBĪBA],$J$8),NA()) -> 
F55: 46 | G55: 2012-06-15 | H55: =SUMIFS(Dati[KILOMETRI],Dati[DATUMS],G55,Dati[DARBĪBA],$H$8) -> 0 | I55: =IFERROR(AVERAGEIFS(Dati[l/km],Dati[DATUMS],G55,Dati[DARBĪBA],$I$8),NA()) ->  | J55: =IFERROR(AVERAGEIFS(Dati[LITRI/KM],Dati[DATUMS],G55,Dati[DARBĪBA],$J$8),NA()) -> 
F56: 47 | G56: 2012-06-16 | H56: =SUMIFS(Dati[KILOMETRI],Dati[DATUMS],G56,Dati[DARBĪBA],$H$8) -> 0 | I56: =IFERROR(AVERAGEIFS(Dati[l/km],Dati[DATUMS],G56,Dati[DARBĪBA],$I$8),NA()) ->  | J56: =IFERROR(AVERAGEIFS(Dati[LITRI/KM],Dati[DATUMS],G56,Dati[DARBĪBA],$J$8),NA()) -> 
F57: 48 | G57: 2012-06-17 | H57: =SUMIFS(Dati[KILOMETRI],Dati[DATUMS],G57,Dati[DARBĪBA],$H$8) -> 0 | I57: =IFERROR(AVERAGEIFS(Dati[l/km],Dati[DATUMS],G57,Dati[DARBĪBA],$I$8),NA()) ->  | J57: =IFERROR(AVERAGEIFS(Dati[LITRI/KM],Dati[DATUMS],G57,Dati[DARBĪBA],$J$8),NA()) -> 
F58: 49 | G58: 2012-06-18 | H58: =SUMIFS(Dati[KILOMETRI],Dati[DATUMS],G58,Dati[DARBĪBA],$H$8) -> 0 | I58: =IFERROR(AVERAGEIFS(Dati[l/km],Dati[DATUMS],G58,Dati[DARBĪBA],$I$8),NA()) ->  | J58: =IFERROR(AVERAGEIFS(Dati[LITRI/KM],Dati[DATUMS],G58,Dati[DARBĪBA],$J$8),NA()) -> 
F59: 50 | G59: 2012-06-19 | H59: =SUMIFS(Dati[KILOMETRI],Dati[DATUMS],G59,Dati[DARBĪBA],$H$8) -> 0 | I59: =IFERROR(AVERAGEIFS(Dati[l/km],Dati[DATUMS],G59,Dati[DARBĪBA],$I$8),NA()) ->  | J59: =IFERROR(AVERAGEIFS(Dati[LITRI/KM],Dati[DATUMS],G59,Dati[DARBĪBA],$J$8),NA()) -> 
F60: 51 | G60: 2012-06-20 | H60: =SUMIFS(Dati[KILOMETRI],Dati[DATUMS],G60,Dati[DARBĪBA],$H$8) -> 0 | I60: =IFERROR(AVERAGEIFS(Dati[l/km],Dati[DATUMS],G60,Dati[DARBĪBA],$I$8),NA()) ->  | J60: =IFERROR(AVERAGEIFS(Dati[LITRI/KM],Dati[DATUMS],G60,Dati[DARBĪBA],$J$8),NA()) -> 
F61: 52 | G61: 2012-06-21 | H61: =SUMIFS(Dati[KILOMETRI],Dati[DATUMS],G61,Dati[DARBĪBA],$H$8) -> 0 | I61: =IFERROR(AVERAGEIFS(Dati[l/km],Dati[DATUMS],G61,Dati[DARBĪBA],$I$8),NA()) ->  | J61: =IFERROR(AVERAGEIFS(Dati[LITRI/KM],Dati[DATUMS],G61,Dati[DARBĪBA],$J$8),NA()) -> 
F62: 53 | G62: 2012-06-22 | H62: =SUMIFS(Dati[KILOMETRI],Dati[DATUMS],G62,Dati[DARBĪBA],$H$8) -> 0 | I62: =IFERROR(AVERAGEIFS(Dati[l/km],Dati[DATUMS],G62,Dati[DARBĪBA],$I$8),NA()) ->  | J62: =IFERROR(AVERAGEIFS(Dati[LITRI/KM],Dati[DATUMS],G62,Dati[DARBĪBA],$J$8),NA()) -> 
F63: 54 | G63: 2012-06-23 | H63: =SUMIFS(Dati[KILOMETRI],Dati[DATUMS],G63,Dati[DARBĪBA],$H$8) -> 0 | I63: =IFERROR(AVERAGEIFS(Dati[l/km],Dati[DATUMS],G63,Dati[DARBĪBA],$I$8),NA()) ->  | J63: =IFERROR(AVERAGEIFS(Dati[LITRI/KM],Dati[DATUMS],G63,Dati[DARBĪBA],$J$8),NA()) -> 
F64: 55 | G64: 2012-06-24 | H64: =SUMIFS(Dati[KILOMETRI],Dati[DATUMS],G64,Dati[DARBĪBA],$H$8) -> 0 | I64: =IFERROR(AVERAGEIFS(Dati[l/km],Dati[DATUMS],G64,Dati[DARBĪBA],$I$8),NA()) ->  | J64: =IFERROR(AVERAGEIFS(Dati[LITRI/KM],Dati[DATUMS],G64,Dati[DARBĪBA],$J$8),NA()) -> 
F65: 56 | G65: 2012-06-25 | H65: =SUMIFS(Dati[KILOMETRI],Dati[DATUMS],G65,Dati[DARBĪBA],$H$8) -> 0 | I65: =IFERROR(AVERAGEIFS(Dati[l/km],Dati[DATUMS],G65,Dati[DARBĪBA],$I$8),NA()) ->  | J65: =IFERROR(AVERAGEIFS(Dati[LITRI/KM],Dati[DATUMS],G65,Dati[DARBĪBA],$J$8),NA()) -> 
F66: 57 | G66: 2012-06-26 | H66: =SUMIFS(Dati[KILOMETRI],Dati[DATUMS],G66,Dati[DARBĪBA],$H$8) -> 0 | I66: =IFERROR(AVERAGEIFS(Dati[l/km],Dati[DATUMS],G66,Dati[DARBĪBA],$I$8),NA()) ->  | J66: =IFERROR(AVERAGEIFS(Dati[LITRI/KM],Dati[DATUMS],G66,Dati[DARBĪBA],$J$8),NA()) -> 
F67: 58 | G67: 2012-06-27 | H67: =SUMIFS(Dati[KILOMETRI],Dati[DATUMS],G67,Dati[DARBĪBA],$H$8) -> 0 | I67: =IFERROR(AVERAGEIFS(Dati[l/km],Dati[DATUMS],G67,Dati[DARBĪBA],$I$8),NA()) ->  | J67: =IFERROR(AVERAGEIFS(Dati[LITRI/KM],Dati[DATUMS],G67,Dati[DARBĪBA],$J$8),NA()) -> 
F68: 59 | G68: 2012-06-28 | H68: =SUMIFS(Dati[KILOMETRI],Dati[DATUMS],G68,Dati[DARBĪBA],$H$8) -> 0 | I68: =IFERROR(AVERAGEIFS(Dati[l/km],Dati[DATUMS],G68,Dati[DARBĪBA],$I$8),NA()) ->  | J68: =IFERROR(AVERAGEIFS(Dati[LITRI/KM],Dati[DATUMS],G68,Dati[DARBĪBA],$J$8),NA()) -> 
F69: 60 | G69: 2012-06-29 | H69: =SUMIFS(Dati[KILOMETRI],Dati[DATUMS],G69,Dati[DARBĪBA],$H$8) -> 0 | I69: =IFERROR(AVERAGEIFS(Dati[l/km],Dati[DATUMS],G69,Dati[DARBĪBA],$I$8),NA()) ->  | J69: =IFERROR(AVERAGEIFS(Dati[LITRI/KM],Dati[DATUMS],G69,Dati[DARBĪBA],$J$8),NA()) -> 
